fUSD/lending_fUSD_20240217
["ID","MTS","AMOUNT","RATE_DAILY","PERIOD"]
[314309860,1708171844132,-156.4,0.00041096,2]
[314309861,1708171844141,-753.64,0.000412,7]
[314309862,1708171844150,-1000.0,0.000412,5]
[314309863,1708171844159,-1000.0,0.00041633,2]
[314309864,1708171844168,-1167.51,0.0004178,2]
[314309865,1708171844177,-201.59,0.00041781,2]
[314309866,1708171844186,-154.6,0.000418,4]
[314309867,1708171844195,-236.7,0.000418,4]
[314309868,1708171844204,-236.7,0.000418,4]
[314309869,1708171844213,-236.7,0.000418,4]
[314309870,1708171844222,-236.7,0.000418,4]
[314309871,1708171844231,-236.7,0.000418,4]
[314309872,1708171844240,-236.7,0.000418,4]
[314309873,1708171844249,-236.7,0.000418,4]
[314309874,1708171844259,-236.7,0.000418,4]
[314309875,1708171844268,-236.7,0.000418,4]
[314309876,1708171844277,-236.7,0.000418,4]
[314309877,1708171844287,-236.7,0.000418,4]
[314309878,1708171844296,-236.7,0.000418,4]
[314309879,1708171844305,-236.7,0.000418,4]
[314309880,1708171844314,-236.7,0.000418,4]
[314309881,1708171844324,-236.7,0.000418,4]
[314309882,1708171844333,-236.7,0.000418,4]
[314309883,1708171844342,-236.7,0.000418,4]
[314309884,1708171844351,-236.7,0.000418,4]
[314309885,1708171844360,-236.7,0.000418,4]
[314309886,1708171844370,-236.7,0.000418,4]
[314309887,1708171844379,-3155.61868141,0.00041847,5]
[314309888,1708171844388,-4201.81726564,0.00041869,13]
[314309889,1708171844397,-68344.67704585,0.00041894,13]
[314309890,1708171844406,-1537.75523353,0.00041894,11]
[314309891,1708171844415,-1325.2915782,0.00041919,12]
[314309892,1708171844423,-3437.25161126,0.00041944,13]
[314309893,1708171844433,-192.29,0.0004197,120]
[314309894,1708171844442,-150.5,0.0004197,120]
[314309895,1708171844451,-150.5,0.0004198,120]
[314309896,1708171844460,-150.5,0.0004198,120]
[314309897,1708171844469,-150.5,0.0004199,120]
[314309898,1708171844478,-173.51,0.0004199,120]
[314309899,1708171844488,-231.21,0.0004199,120]
[314309900,1708171844497,-150.5,0.0004199,120]
[314309901,1708171844506,-316.03132048,0.00042,2]
[314309902,1708171844516,-8722.5118314,0.00042,2]
[314309903,1708171844525,-1231.24686331,0.00042,120]
[314309904,1708171844534,-194885.1974035,0.00042,4]
[314309905,1708171844543,-1050.25040294,0.00042,60]
[314309906,1708171844552,-7464.35666775,0.00042,2]
[314309907,1708171844561,-965.47916117,0.00042,7]
[314309908,1708171844570,-338.5789,0.00042,59]
[314309909,1708171844579,-1297.63261035,0.0004201,2]
[314309910,1708171844588,-486.72,0.00042092,15]
[314309911,1708171844597,-562.8,0.00042205,2]
[314309912,1708171844606,-153.40750239,0.00042229,15]
[314309913,1708171844615,-750.0,0.00042465,3]
[314309914,1708171844624,-156.66,0.0004249,120]
[314309915,1708171844632,-218.45652181,0.00042558,30]
[314309916,1708171844642,-264348.20538451,0.00042819,5]
[314309917,1708171844651,-3444.48866904,0.00042888,32]
[314309918,1708171844662,-730.0589355,0.00042897,10]
[314309919,1708171844671,-188.9450234,0.00042997,4]
[314309920,1708171844680,-227.89924922,0.00042997,4]
[314309921,1708171844690,-99107.97050595,0.00042998,3]
[314309922,1708171844703,-231642.29418144,0.00042998,3]
[314309923,1708171844713,-1000.0,0.00043027,2]
[314309924,1708171844722,-151.58,0.00043151,2]
[314309925,1708171844732,-200.0,0.0004339,7]
[314309926,1708171844741,-200.0,0.0004339,7]
[314309927,1708171844750,-188.9450234,0.00043399,4]
[314309928,1708171844760,-227.89924922,0.00043399,4]
[314309929,1708171844769,-188.9450234,0.00043399,4]
[314309930,1708171844778,-227.89924922,0.00043399,4]
[314309931,1708171844787,-188.9450234,0.00043399,4]
[314309932,1708171844796,-227.89924922,0.00043399,4]
[314309933,1708171844805,-188.9450234,0.00043399,4]
[314309934,1708171844814,-227.89924922,0.00043399,4]
[314309935,1708171844823,-25601.44713721,0.000434,3]
[314309936,1708171844865,-171.0,0.00035,2]
[314309937,1708171844874,-368.18876371,0.000434,3]
[314309938,1708171845075,-12.9114376,0.000434,3]
[314309939,1708171845086,-6879.64113242,0.000434,3]
[314309941,1708171845178,-906.25999723,0.000434,3]
[314309942,1708171845189,-14383.86682473,0.000434,3]
[314309943,1708171845201,-12598.15200329,0.000434,3]
[314309944,1708171845241,-4440681.21133242,0.000434,3]
[314309945,1708171845253,-280.07592165,0.000434,3]
[314309946,1708171845419,-171573.68919283,0.000434,3]
[314309947,1708171845429,-283.06468421,0.000434,2]
[314309948,1708171845438,-385.37735206,0.000434,2]
[314309949,1708171845447,-15027.05709968,0.000434,2]
[314309950,1708171845456,-3155.61868141,0.00043426,5]
[314309951,1708171845464,-181.45034987,0.00043456,30]
[314309952,1708171845474,-562.8,0.00043677,2]
[314309953,1708171845483,-13918.3,0.000437,11]
[314309954,1708171845492,-153.40750239,0.00043813,21]
[314309955,1708171845501,-256.8375,0.00043835,7]
[314309956,1708171845510,-1335.39583536,0.00043835,2]
[314309957,1708171845519,-750.0,0.00043835,3]
[314309958,1708171845529,-33063.05685959,0.00044,2]
[314309959,1708171845538,-3389.07301823,0.00044,4]
[314309960,1708171845547,-7288.36148334,0.00044,8]
[314309961,1708171845556,-250.0,0.00044,30]
[314309962,1708171845565,-1167.51,0.00044044,2]
[314309963,1708171845574,-22688.5956893,0.00044091,2]
[314309964,1708171845583,-166.05101382,0.00044377,30]
[314309965,1708171845592,-513.675,0.00044383,7]
[314309966,1708171845601,-1000.0,0.00044422,2]
[314309967,1708171845610,-400.0,0.00044572,2]
[314309968,1708171845620,-770.5125,0.00044931,7]
[314309969,1708171845629,-214.91623453,0.00045,4]
[314309970,1708171845638,-4833.78305591,0.00045,17]
[314309972,1708171845647,-29532.21986495,0.00045,30]
[314309975,1708171845656,-447.52311601,0.00045,4]
[314309978,1708171845667,-28689.40793652,0.00045,10]
[314309981,1708171845676,-155.0,0.00045,7]
[314309984,1708171845685,-35000.0,0.00045,30]
[314309986,1708171845695,-3155.61868141,0.00045005,5]
[314309988,1708171845704,-201.8018,0.0004514,30]
[314309990,1708171845713,-562.8,0.00045149,2]
[314309992,1708171845723,-150.37939949,0.00045162,2]
[314309994,1708171845732,-154.6,0.000452,5]
[314309996,1708171845741,-154.6,0.000452,5]
[314309998,1708171845751,-236.7,0.000452,5]
[314310001,1708171845761,-236.7,0.000452,5]
[314310003,1708171845771,-236.7,0.000452,5]
[314310004,1708171845780,-236.7,0.000452,5]
[314310005,1708171845789,-236.7,0.000452,5]
[314310006,1708171845798,-236.7,0.000452,5]
[314310007,1708171845807,-236.7,0.000452,5]
[314310008,1708171845817,-236.7,0.000452,5]
[314310009,1708171845826,-236.7,0.000452,5]
[314310010,1708171845836,-236.7,0.000452,5]
[314310011,1708171845846,-236.7,0.000452,5]
[314310012,1708171845855,-236.7,0.000452,5]
[314310013,1708171845864,-236.7,0.000452,5]
[314310014,1708171845873,-236.7,0.000452,5]
[314310015,1708171845883,-236.7,0.000452,5]
[314310016,1708171845897,-236.7,0.000452,5]
[314310017,1708171845907,-236.7,0.000452,5]
[314310018,1708171845917,-236.7,0.000452,5]
[314310019,1708171845926,-236.7,0.000452,5]
[314310020,1708171845937,-236.7,0.000452,5]
[314310021,1708171845946,-256.29499783,0.00045205,3]
[314310022,1708171845956,-201.59,0.00045205,2]
[314310023,1708171845966,-153.40750239,0.00045397,27]
[314310024,1708171845975,-1027.35,0.00045479,7]
[314310025,1708171845984,-1000.0,0.00045816,2]
[314310026,1708171845993,-486.72,0.00045828,15]
[314310027,1708171846002,-5000.0,0.00046,3]
[314310028,1708171846012,-205.0,0.00046,10]
[314310029,1708171846021,-1284.1875,0.00046027,7]
[314310030,1708171846030,-1167.51,0.00046308,2]
[314310031,1708171846039,-166.05101382,0.00046337,30]
[314310032,1708171846048,-167.8862141,0.00046417,30]
[314310033,1708171846058,-1541.025,0.00046575,7]
[314310034,1708171846067,-3155.61868141,0.00046584,5]
[314310035,1708171846077,-1000.0,0.000468,19]
[314310036,1708171846086,-153.40750239,0.00046981,33]
[314310037,1708171846095,-205.56315575,0.00047,25]
[314310038,1708171846104,-205.0,0.00047,10]
[314310039,1708171846113,-1797.8625,0.00047123,7]
[314310040,1708171846122,-155.0,0.00047175,30]
[314310041,1708171846132,-1000.0,0.00047211,2]
[314310042,1708171846141,-14288.5,0.00047542,2]
[314310043,1708171846150,-1000.0,0.000476,21]
[314310044,1708171846159,-166.05101382,0.00047602,30]
[314310045,1708171846168,-2054.7,0.00047671,7]
[314310046,1708171846177,-155.0,0.00047723,30]
[314310047,1708171846186,-1415.41,0.00047873,120]
[314310048,1708171846195,-151.58,0.00047945,2]
[314310049,1708171846205,-10029.66793976,0.00048,5]
[314310050,1708171846214,-15655.37453229,0.00048,30]
[314310051,1708171846223,-205.0,0.00048,10]
[314310052,1708171846232,-4192.92,0.0004807,120]
[314310053,1708171846241,-3155.61868141,0.00048163,5]
[314310055,1708171846250,-2311.5375,0.00048219,7]
[314310056,1708171846259,-155.0,0.00048271,30]
[314310057,1708171846269,-2946.47828094,0.0004839,2]
[314310058,1708171846278,-188.9450234,0.00048399,8]
[314310059,1708171846287,-227.89924922,0.00048399,8]
[314310060,1708171846295,-154535.844801,0.000484,120]
[314310062,1708171846363,-5413.70379554,0.000484,120]
[314310063,1708171846669,-484.57425325,0.00027975,2]
[314310064,1708171846679,-12457.32745359,0.000484,120]
[314310065,1708171846693,-41420.27921638,0.000484,120]
[314310066,1708171846977,-687.56906056,0.000484,120]
[314310067,1708171847000,-45121.37408127,0.000484,120]
[314310068,1708171847010,-153.40750239,0.00048565,39]
[314310069,1708171847020,-1167.51,0.00048572,2]
[314310070,1708171847029,-154.6,0.000486,6]
[314310071,1708171847038,-154.6,0.000486,6]
[314310072,1708171847047,-236.7,0.000486,6]
[314310073,1708171847056,-236.7,0.000486,6]
[314310074,1708171847065,-236.7,0.000486,6]
[314310075,1708171847074,-236.7,0.000486,6]
[314310076,1708171847083,-236.7,0.000486,6]
[314310077,1708171847092,-236.7,0.000486,6]
[314310078,1708171847101,-236.7,0.000486,6]
[314310079,1708171847110,-236.7,0.000486,6]
[314310080,1708171847119,-236.7,0.000486,6]
[314310081,1708171847128,-236.7,0.000486,6]
[314310082,1708171847137,-236.7,0.000486,6]
[314310083,1708171847146,-236.7,0.000486,6]
[314310084,1708171847155,-236.7,0.000486,6]
[314310085,1708171847163,-236.7,0.000486,6]
[314310086,1708171847172,-236.7,0.000486,6]
[314310087,1708171847181,-236.7,0.000486,6]
[314310088,1708171847190,-236.7,0.000486,6]
[314310089,1708171847199,-236.7,0.000486,6]
[314310090,1708171847209,-236.7,0.000486,6]
[314310091,1708171847217,-236.7,0.000486,6]
[314310092,1708171847227,-407.09584175,0.00048605,2]
[314310093,1708171847236,-2568.375,0.00048767,7]
[314310094,1708171847244,-155.0,0.00048819,30]
[314310095,1708171847254,-200.0,0.00049,10]
[314310096,1708171847264,-205.0,0.00049,14]
[314310097,1708171847273,-223.021788,0.00049148,95]
[314310098,1708171847282,-155.94774475,0.00049287,10]
[314310099,1708171847291,-663.59417096,0.000493,2]
[314310100,1708171847300,-150.1,0.000493,2]
[314310101,1708171847310,-2825.2125,0.00049315,7]
[314310102,1708171847318,-153.0,0.00049367,60]
[314310103,1708171847327,-227129.13553057,0.000494,120]
[314310104,1708171865122,199.27,0.0003001,120]
[314310106,1708172029767,-155.0,0.00022899,2]
[314310107,1708172029789,-50885.0,0.000229,2]
[314310109,1708172326441,-199.41385981,0.00022899,2]
[314310110,1708172326462,-49115.0,0.000229,2]
[314310111,1708172326482,-1125.8014,0.000229,2]
[314310112,1708172326503,-1000.0,0.000229,2]
[314310119,1708172572196,150.73300819,0.00022877,2]
[314310120,1708172644509,256.66504165,0.00033,120]
[314310133,1708173032022,-550.0,0.00025,3]
[314310134,1708173032032,-210.0,0.00025504,2]
[314310135,1708173032042,-600.0,0.00027,3]
[314310136,1708173032052,-650.0,0.00029,3]
[314310137,1708173032062,-159.72869695,0.000299,2]
[314310138,1708173032072,-891.62690609,0.0003,4]
[314310139,1708173032128,-926.30970274,0.0003,4]
[314310140,1708173032138,-1175.14637642,0.0003,4]
[314310141,1708173032148,-2671.70774352,0.0003,4]
[314310142,1708173032158,-71.03181137,0.0003,2]
[314310143,1708173032240,-928.96818863,0.0003,2]
[314310144,1708173032250,-843.21992757,0.00031,2]
[314310180,1708173038042,-156.78007243,0.00031,2]
[314310181,1708173038051,-700.0,0.00031,3]
[314310182,1708173038061,-159.72869695,0.000319,2]
[314310183,1708173038070,-499.99,0.000319,2]
[314310184,1708173038079,-155.0,0.00032834,4]
[314310185,1708173038089,-750.0,0.00033,3]
[314310186,1708173038099,-159.72869695,0.000339,2]
[314310187,1708173038109,-200.0,0.00035,7]
[314310188,1708173038118,-800.0,0.00035,3]
[314310189,1708173038128,-200.0,0.00035,7]
[314310190,1708173038137,-159.72869695,0.000359,2]
[314310191,1708173038146,-850.0,0.00037,3]
[314310192,1708173038156,-15074.0,0.000379,2]
[314310193,1708173038165,-2227.0,0.000379,2]
[314310194,1708173038174,-159.72869695,0.000379,2]
[314310195,1708173038184,-201.61,0.00038356,2]
[314310196,1708173038193,-467.0,0.00038489,2]
[314310197,1708173038202,-7924.80789593,0.0003888,2]
[314310198,1708173038212,-900.0,0.00039,3]
[314310199,1708173038222,-151.58,0.00039347,2]
[314310200,1708173038233,-23900.0,0.00039488,2]
[314310201,1708173038242,-1078.8,0.00039514,2]
[314310202,1708173038252,-1000.0,0.00039531,2]
[314310203,1708173038260,-2000.0,0.00039548,2]
[314310204,1708173038271,-250.0,0.0003956,2]
[314310205,1708173038279,-707.7,0.00039578,2]
[314310206,1708173038289,-150.0,0.0003963,2]
[314310207,1708173038298,-250.0,0.00039672,2]
[314310208,1708173038310,-365.04,0.00039759,15]
[314310209,1708173038320,-250.0,0.00039792,111]
[314310210,1708173038330,-159.72869695,0.000399,2]
[314310211,1708173038339,-178.03,0.000399,2]
[314310212,1708173038348,-2096.46,0.00040289,2]
[314310213,1708173038358,-467.0,0.00040753,2]
[314310214,1708173038367,-333.0,0.00040825,2]
[314310215,1708173038376,-649.70326211,0.00040825,120]
[314310216,1708173038385,-1078.8,0.00040976,2]
[314310217,1708173038395,-950.0,0.00041,3]
[314310218,1708173038405,-152.82,0.000418,4]
[314310219,1708173038414,-152.82,0.000418,4]
[314310220,1708173038423,-152.82,0.000418,4]
[314310221,1708173038432,-152.82,0.000418,4]
[314310222,1708173038441,-152.82,0.000418,4]
[314310223,1708173038450,-152.82,0.000418,4]
[314310224,1708173038459,-152.82,0.000418,4]
[314310225,1708173038469,-152.82,0.000418,4]
[314310226,1708173038478,-152.82,0.000418,4]
[314310227,1708173038487,-152.82,0.000418,4]
[314310228,1708173038496,-152.82,0.000418,4]
[314310229,1708173038505,-152.82,0.000418,4]
[314310230,1708173038514,-555.0,0.00041825,2]
[314310231,1708173038523,-159.72869695,0.000419,2]
[314310232,1708173038532,-4914.43397199,0.00041968,13]
[314310233,1708173038542,-17170.30808405,0.00042018,14]
[314310234,1708173038551,-8585.15404203,0.00042018,14]
[314310235,1708173038559,-1078.8,0.00042438,2]
[314310236,1708173038568,-1000.0,0.00043,3]
[314310237,1708173038578,-467.0,0.00043017,2]
[314310238,1708173038587,-1212.91218193,0.000434,4]
[314310239,1708173038597,-365.04,0.00043495,15]
[314310240,1708173038606,-2000.0,0.000436,2]
[314310241,1708173038615,-156.45,0.00043643,2]
[314310242,1708173038624,-176.21,0.00043655,2]
[314310243,1708173038633,-1078.8,0.000439,2]
[314310244,1708173038643,-159.72869695,0.000439,2]
[314310245,1708173038652,-822.97735198,0.00043961,4]
[314310246,1708173038661,-180.0,0.00043978,2]
[314310247,1708173038671,-166.05101383,0.00044151,30]
[314310248,1708173038681,-1000.0,0.00044472,2]
[314310249,1708173038690,-4177.6503789,0.000449,6]
[314310250,1708173038700,-7950.56812699,0.000449,6]
[314310251,1708173038709,-2500.0,0.000449,2]
[314310252,1708173038718,-158.23203844,0.00044965,30]
[314310253,1708173038727,-772.61095846,0.00044998,8]
[314310254,1708173038736,-447.52311601,0.00045,4]
[314310255,1708173038746,-1050.0,0.00045,3]
[314310256,1708173038755,-104576.40501896,0.00045,2]
[314310257,1708173038801,-85493.35228131,0.00045,2]
[314310258,1708173038810,-404.92800675,0.00045,4]
[314310259,1708173038819,-4833.78305591,0.00045,17]
[314310260,1708173038829,-5423.75988685,0.0004519,12]
[314310261,1708173038838,-152.82,0.000452,5]
[314310262,1708173038851,-152.82,0.000452,5]
[314310263,1708173038860,-152.82,0.000452,5]
[314310264,1708173038869,-152.82,0.000452,5]
[314310265,1708173038879,-152.82,0.000452,5]
[314310266,1708173038888,-152.82,0.000452,5]
[314310267,1708173038897,-152.82,0.000452,5]
[314310268,1708173038906,-152.82,0.000452,5]
[314310269,1708173038915,-152.82,0.000452,5]
[314310270,1708173038925,-152.82,0.000452,5]
[314310271,1708173038934,-152.82,0.000452,5]
[314310272,1708173038943,-152.82,0.000452,5]
[314310273,1708173038952,-467.0,0.00045281,2]
[314310274,1708173038962,-1078.8,0.00045362,2]
[314310275,1708173038971,-159.72869695,0.000459,2]
[314310276,1708173038981,-2252.68375417,0.00046,4]
[314310277,1708173038991,-151.58,0.00046003,2]
[314310278,1708173039000,-2000.0,0.000463,2]
[314310279,1708173039010,-4177.65037885,0.00046322,8]
[314310280,1708173039019,-7950.56812699,0.00046323,8]
[314310281,1708173039028,-166.05101383,0.00046577,30]
[314310282,1708173039037,-1639.0,0.000467,115]
[314310283,1708173039047,-158.23203844,0.00046853,30]
[314310284,1708173039057,-1100.0,0.00047,3]
[314310285,1708173039066,-205.0,0.00047,10]
[314310286,1708173039076,-365.04,0.00047231,120]
[314310287,1708173039085,-542.3842,0.00047537,2]
[314310288,1708173039095,-467.0,0.00047545,2]
[314310289,1708173039104,-4177.65037885,0.00047744,9]
[314310290,1708173039114,-7950.56812699,0.00047746,9]
[314310291,1708173039124,-5423.75988685,0.0004789,12]
[314310292,1708173039133,-159.72869695,0.000479,2]
[314310293,1708173039143,-2200.0,0.00048,11]
[314310294,1708173039152,-2252.68375417,0.00048,4]
[314310295,1708173039161,-205.0,0.000483,10]
[314310296,1708173039171,-158.23203844,0.00048396,30]
[314310297,1708173039181,-50000.0,0.000485,7]
[314310298,1708173039190,-152.82,0.000486,6]
[314310299,1708173039200,-152.82,0.000486,6]
[314310300,1708173039209,-152.82,0.000486,6]
[314310301,1708173039218,-152.82,0.000486,6]
[314310302,1708173039230,-152.82,0.000486,6]
[314310303,1708173039239,-152.82,0.000486,6]
[314310304,1708173039248,-152.82,0.000486,6]
[314310305,1708173039258,-152.82,0.000486,6]
[314310306,1708173039267,-152.82,0.000486,6]
[314310307,1708173039277,-152.82,0.000486,6]
[314310308,1708173039287,-152.82,0.000486,6]
[314310309,1708173039296,-152.82,0.000486,6]
[314310310,1708173039306,-166.05101383,0.00048749,30]
[314310311,1708173039315,-265.37205506,0.0004876,20]
[314310312,1708173039325,-5423.75988685,0.0004881,13]
[314310313,1708173039334,-16271.2796606,0.0004882,13]
[314310314,1708173039344,-25997.55481538,0.0004883,2]
[314310315,1708173039353,-5423.75988685,0.0004899,13]
[314310316,1708173039363,-3000.0,0.00049,120]
[314310317,1708173039372,-1150.0,0.00049,3]
[314310318,1708173039381,-2000.0,0.00049,2]
[314310319,1708173039390,-197.28066176,0.00049,15]
[314310320,1708173039400,-5423.75988685,0.00049128,13]
[314310321,1708173039410,-5423.75988685,0.00049138,13]
[314310322,1708173039419,-7256.0517,0.00049148,2]
[314310323,1708173039429,-2955.4136,0.00049148,2]
[314310324,1708173039438,-266.16367082,0.00049153,12]
[314310325,1708173039447,-4177.65037885,0.00049167,10]
[314310326,1708173039456,-7950.56812699,0.00049169,10]
[314310327,1708173039465,-21695.0395474,0.0004927,13]
[314310328,1708173039475,-222.38402291,0.0004927,2]
[314310329,1708173039604,-26326.47907792,0.0004928,13]
[314310330,1708173039621,-28820.40422769,0.0004928,13]
[314310331,1708173041294,-380.5944203,0.00042044,11]
[314310332,1708173041304,-77.20557974,0.00047,120]
[314310333,1708173041352,-72.79442026,0.00047,120]
[314310334,1708173041361,-6641.92516617,0.00047,120]
[314310335,1708173041415,-400.07483383,0.00047,120]
[314310336,1708173041424,-372.50946649,0.0004928,13]
[314310337,1708173041436,-517.16461746,0.0004928,13]
[314310342,1708173042938,-170.32,0.0004927,10]
[314310343,1708173042947,-2850.46284639,0.0004928,13]
[314310344,1708173043037,-0.95871904,0.0004928,13]
[314310345,1708173043222,-0.90114901,0.0004928,13]
[314310346,1708173043238,-434.6173802,0.0004928,13]
[314310347,1708173043250,-23980.24398499,0.0004928,13]
[314310348,1708173043265,-1661.60734328,0.0004928,13]
[314310349,1708173043281,-9693.62382849,0.0004928,13]
[314310350,1708173043295,-2968.70532234,0.0004928,13]
[314310351,1708173043307,-1428.40147779,0.0004928,11]
[314310352,1708173043320,-6039.9275515,0.0004928,11]
[314310353,1708173043331,-6001.47073487,0.0004928,11]
[314310407,1708173046310,-292.91800835,0.0004928,11]
[314310409,1708173046327,-1473.16193053,0.0004928,11]
[314310410,1708173046346,-915.0,0.0004928,11]
[314310411,1708173046359,-381.79208902,0.0004928,11]
[314310416,1708174132359,-550.0,0.00025,3]
[314310417,1708174132381,-600.0,0.00027,3]
[314310418,1708174132402,-650.0,0.00029,3]
[314310420,1708174232141,-536.0419864,0.00031,3]
[314310422,1708174232154,-163.9580136,0.00031,3]
[314310424,1708174232163,-465.96,0.00032833,2]
[314310425,1708174232173,-173.40620906,0.00033,3]
[314310426,1708174232201,-576.59379094,0.00033,3]
[314310427,1708174232210,-800.0,0.00035,3]
[314310428,1708174232219,-278.8549,0.00036513,120]
[314310429,1708174232229,-477.26092921,0.00036614,4]
[314310430,1708174232239,-158.09064641,0.000367,2]
[314310431,1708174232248,-400.0,0.00036799,3]
[314310432,1708174232257,-936.77039344,0.000368,2]
[314310433,1708174232450,-1032.42,0.000368,2]
[314310434,1708174232462,-2885.57637946,0.000368,2]
[314310435,1708174232472,-2476.42362024,0.00037,2]
[314310472,1708174238138,-27554.57637976,0.00037,2]
[314310473,1708174238147,-850.0,0.00037,3]
[314310474,1708174238156,-13567.0,0.000379,2]
[314310476,1708174238165,-822.97735197,0.00037911,3]
[314310477,1708174238175,-900.0,0.00039,3]
[314310478,1708174238184,-438.6,0.00039471,2]
[314310479,1708174238194,-151.33,0.000399,2]
[314310480,1708174238204,-158.09064638,0.000411,2]
[314310481,1708174238213,-150.0,0.00041307,2]
[314310482,1708174238222,-205.64,0.00041363,10]
[314310483,1708174238231,-2000.0,0.00041571,120]
[314310484,1708174238240,-438.6,0.00041735,2]
[314310485,1708174238249,-152.17,0.000418,4]
[314310486,1708174238258,-152.17,0.000418,4]
[314310487,1708174238267,-152.17,0.000418,4]
[314310488,1708174238277,-152.17,0.000418,4]
[314310489,1708174238286,-152.17,0.000418,4]
[314310490,1708174238295,-152.17,0.000418,4]
[314310491,1708174238304,-152.17,0.000418,4]
[314310492,1708174238314,-152.17,0.000418,4]
[314310493,1708174238323,-152.17,0.000418,4]
[314310494,1708174238332,-152.17,0.000418,4]
[314310495,1708174238342,-152.17,0.000418,4]
[314310496,1708174238351,-152.17,0.000418,4]
[314310497,1708174238360,-152.17,0.000418,4]
[314310498,1708174238370,-152.17,0.000418,4]
[314310499,1708174238379,-152.17,0.000418,4]
[314310500,1708174238388,-152.17,0.000418,4]
[314310501,1708174238398,-332.60186682,0.00041853,30]
[314310502,1708174238407,-332.60186682,0.00041872,30]
[314310503,1708174238416,-542.3842,0.00041918,2]
[314310504,1708174238425,-499.99,0.00041918,2]
[314310505,1708174238434,-2812.29677285,0.00042119,12]
[314310506,1708174238443,-2660.75096763,0.00042144,14]
[314310507,1708174238452,-152.0,0.00042317,3]
[314310508,1708174238462,-151.59,0.0004237,2]
[314310509,1708174238471,-332.60186682,0.00042445,30]
[314310510,1708174238480,-332.60186682,0.00042943,30]
[314310511,1708174238489,-564.01828774,0.00043,4]
[314310512,1708174238499,-250.0,0.00043291,2]
[314310513,1708174238508,-304.2,0.00043404,15]
[314310514,1708174238517,-250.0,0.00043595,2]
[314310515,1708174238526,-9677.74,0.00043614,2]
[314310516,1708174238535,-332.60186682,0.00043684,30]
[314310517,1708174238545,-207.225,0.000437,2]
[314310518,1708174238553,-877.1669,0.000437,2]
[314310519,1708174238562,-2000.0,0.000438,2]
[314310520,1708174238572,-332.60186682,0.00043917,30]
[314310521,1708174238585,-438.6,0.00043998,2]
[314310522,1708174238594,-205.0,0.00044,10]
[314310523,1708174238604,-250.0,0.00044108,111]
[314310524,1708174238614,-327.62,0.00044193,2]
[314310525,1708174238623,-589.75,0.00044193,120]
[314310526,1708174238633,-332.60186682,0.00044265,30]
[314310527,1708174238642,-392.55473846,0.000447,2]
[314310528,1708174238652,-1320.3602,0.0004474,2]
[314310529,1708174238662,-2451.421,0.0004474,2]
[314310530,1708174238673,-1000.0,0.000448,2]
[314310531,1708174238682,-1000.0,0.00044836,2]
[314310532,1708174238691,-332.60186682,0.00044857,30]
[314310533,1708174238700,-332.60186682,0.00044859,30]
[314310534,1708174238710,-151.0,0.00044882,7]
[314310535,1708174238719,-7715.76313058,0.00044899,4]
[314310536,1708174238728,-111692.4453,0.000449,2]
[314310537,1708174238738,-7008.853,0.0004494,3]
[314310538,1708174238747,-1747.05,0.00044967,120]